[Event "*** Titled Tuesday Blitz"]
[Site "Chess.com"]
[Date "2021.03.02"]
[Round "1"]
[White "GelmanAlexander"]
[Black "andy_rekt"]
[Result "0-1"]
[WhiteElo "2550"]
[BlackElo "2279"]
[TimeControl "180+1"]
[EndTime "10:07:03 PST"]
[Termination "andy_rekt won by resignation"]

1. d4 {[%clk 0:02:51.4]} 1... e6 {[%clk 0:02:59.2]} 2. Nc3 {[%clk 0:02:51.3]}
2... d5 {[%clk 0:02:57.9]} 3. Bf4 {[%clk 0:02:51.2]} 3... Nf6 {[%clk 0:02:54.2]}
4. Nb5 {[%clk 0:02:49.9]} 4... Na6 {[%clk 0:02:50.5]} 5. e3 {[%clk 0:02:49]}
5... c6 {[%clk 0:02:48.3]} 6. Nc3 {[%clk 0:02:48.3]} 6... Nb8 {[%clk 0:02:47.5]}
7. Nf3 {[%clk 0:02:46.9]} 7... Nbd7 {[%clk 0:02:46.9]} 8. Ne5 {[%clk 0:02:44.3]}
8... Be7 {[%clk 0:02:42.3]} 9. Qf3 {[%clk 0:02:42.6]} 9... O-O {[%clk 0:02:34]}
10. g4 {[%clk 0:02:42.5]} 10... Nxe5 {[%clk 0:02:27.2]} 11. Bxe5 {[%clk
0:02:39.9]} 11... Nd7 {[%clk 0:02:26.6]} 12. Bg3 {[%clk 0:02:39.6]} 12... f6
{[%clk 0:02:23.7]} 13. O-O-O {[%clk 0:02:37.5]} 13... e5 {[%clk 0:02:19.4]} 14.
Kb1 {[%clk 0:02:32.3]} 14... e4 {[%clk 0:02:17.8]} 15. Qg2 {[%clk 0:02:32.2]}
15... b5 {[%clk 0:02:10.1]} 16. h4 {[%clk 0:02:30.7]} 16... Nb6 {[%clk
0:02:04.9]} 17. f3 {[%clk 0:02:29.5]} 17... b4 {[%clk 0:02:00.2]} 18. Ne2 {[%clk
0:02:27]} 18... Nc4 {[%clk 0:01:55]} 19. Bf2 {[%clk 0:02:18.5]} 19... exf3
{[%clk 0:01:50.2]} 20. Qxf3 {[%clk 0:02:15.1]} 20... f5 {[%clk 0:01:50.5]} 21.
g5 {[%clk 0:02:08.6]} 21... Nd6 {[%clk 0:01:44]} 22. Bg3 {[%clk 0:02:01.8]}
22... Ne4 {[%clk 0:01:41.9]} 23. Nf4 {[%clk 0:01:58]} 23... a5 {[%clk
0:01:38.1]} 24. Bd3 {[%clk 0:01:57.2]} 24... a4 {[%clk 0:01:37.2]} 25. Bxe4
{[%clk 0:01:55.2]} 25... fxe4 {[%clk 0:01:34.5]} 26. Qe2 {[%clk 0:01:55.4]}
26... b3 {[%clk 0:01:31.4]} 27. cxb3 {[%clk 0:01:53.2]} 27... axb3 {[%clk
0:01:31.7]} 28. a3 {[%clk 0:01:52.9]} 28... Bxa3 {[%clk 0:01:20.9]} 29. bxa3
{[%clk 0:01:50.2]} 29... Rxa3 {[%clk 0:01:21.5]} 30. Qd2 {[%clk 0:01:35]} 30...
Ba6 {[%clk 0:01:14.4]} 31. Qb4 {[%clk 0:01:34.9]} 31... Ra5 {[%clk 0:01:00.4]}
32. Kb2 {[%clk 0:01:24]} 32... Ra2+ {[%clk 0:00:54.9]} 33. Kxb3 {[%clk
0:01:11.6]} 33... Bc4+ {[%clk 0:00:53.7]} 34. Kc3 {[%clk 0:01:11.9]} 34... Qa8
{[%clk 0:00:53.4]} 35. Ne6 {[%clk 0:01:05.1]} 35... Rf3 {[%clk 0:00:45.2]} 36.
Bf4 {[%clk 0:00:43.7]} 36... Ra3+ {[%clk 0:00:30.8]} 37. Kd2 {[%clk 0:00:40.4]}
37... Rf2+ {[%clk 0:00:27.6]} 38. Ke1 {[%clk 0:00:30.1]} 38... Re2+ {[%clk
0:00:25.9]} 39. Kf1 {[%clk 0:00:30.3]} 39... Rb2+ {[%clk 0:00:24.6]} 40. Qxc4
{[%clk 0:00:30.4]} 40... dxc4 {[%clk 0:00:25]} 41. Rh2 {[%clk 0:00:27.4]} 41...
Rxh2 {[%clk 0:00:23.3]} 42. Bxh2 {[%clk 0:00:28.3]} 42... Ra1 {[%clk 0:00:23.8]}
43. Rxa1 {[%clk 0:00:26.9]} 43... Qxa1+ {[%clk 0:00:24.7]} 44. Kf2 {[%clk
0:00:27.4]} 44... Qb2+ {[%clk 0:00:23.9]} 45. Kg3 {[%clk 0:00:27.9]} 45... c3
{[%clk 0:00:24.4]} 0-1

[Event "*** Titled Tuesday Blitz"]
[Site "Chess.com"]
[Date "2021.03.02"]
[Round "1"]
[White "Piotrek1979"]
[Black "Volodar_Murzin"]
[Result "0-1"]
[WhiteElo "2364"]
[BlackElo "2694"]
[TimeControl "180+1"]
[EndTime "10:07:05 PST"]
[Termination "Volodar_Murzin won by resignation"]

1. e4 {[%clk 0:03:00.3]} 1... c5 {[%clk 0:02:55]} 2. Nf3 {[%clk 0:03:00.2]} 2...
d6 {[%clk 0:02:55]} 3. d4 {[%clk 0:03:00.5]} 3... cxd4 {[%clk 0:02:55.9]} 4.
Qxd4 {[%clk 0:03:00.7]} 4... a6 {[%clk 0:02:54.9]} 5. Be3 {[%clk 0:02:57.8]}
5... Nc6 {[%clk 0:02:55.8]} 6. Qb6 {[%clk 0:02:56.8]} 6... Qxb6 {[%clk
0:02:52.5]} 7. Bxb6 {[%clk 0:02:55.6]} 7... Nf6 {[%clk 0:02:53.4]} 8. Nc3 {[%clk
0:02:54.9]} 8... Bg4 {[%clk 0:02:53]} 9. Nd4 {[%clk 0:02:48.6]} 9... e5 {[%clk
0:02:43.7]} 10. Nb3 {[%clk 0:02:42.4]} 10... Rc8 {[%clk 0:02:35.2]} 11. f3
{[%clk 0:02:41.1]} 11... Be6 {[%clk 0:02:34.5]} 12. O-O-O {[%clk 0:02:40.2]}
12... Be7 {[%clk 0:02:23.3]} 13. Kb1 {[%clk 0:02:38.2]} 13... O-O {[%clk
0:02:13.5]} 14. Be2 {[%clk 0:02:37.6]} 14... Nb8 {[%clk 0:02:02.1]} 15. Rd2
{[%clk 0:02:35.2]} 15... Nbd7 {[%clk 0:02:01.1]} 16. Be3 {[%clk 0:02:34.3]}
16... b5 {[%clk 0:02:00.8]} 17. Rhd1 {[%clk 0:02:31.9]} 17... Rfd8 {[%clk
0:01:53]} 18. Na5 {[%clk 0:02:27.8]} 18... Nc5 {[%clk 0:01:43.4]} 19. g4 {[%clk
0:02:16.7]} 19... h6 {[%clk 0:01:39.2]} 20. Nd5 {[%clk 0:01:46.7]} 20... Nxd5
{[%clk 0:01:30]} 21. exd5 {[%clk 0:01:45.6]} 21... Bd7 {[%clk 0:01:29.9]} 22.
Bd3 {[%clk 0:01:30.8]} 22... Bg5 {[%clk 0:01:22.6]} 23. Bxg5 {[%clk 0:01:25.5]}
23... hxg5 {[%clk 0:01:23.5]} 24. h3 {[%clk 0:01:20.8]} 24... g6 {[%clk
0:01:22.8]} 25. Be2 {[%clk 0:01:11.1]} 25... Kg7 {[%clk 0:01:20.4]} 26. Bf1
{[%clk 0:01:09.7]} 26... Rh8 {[%clk 0:01:19.5]} 27. Nb3 {[%clk 0:01:05.9]} 27...
Na4 {[%clk 0:01:15.6]} 28. Nc1 {[%clk 0:00:59.2]} 28... f5 {[%clk 0:01:12.1]}
29. Nd3 {[%clk 0:00:58.3]} 29... Kf6 {[%clk 0:01:11]} 30. Nb4 {[%clk 0:00:57.5]}
30... Nc5 {[%clk 0:01:09.8]} 31. b3 {[%clk 0:00:52.6]} 31... e4 {[%clk
0:01:08.2]} 32. Nc6 {[%clk 0:00:50.2]} 32... exf3 {[%clk 0:01:05.7]} 33. Kb2
{[%clk 0:00:30.2]} 33... fxg4 {[%clk 0:01:01.4]} 34. hxg4 {[%clk 0:00:29.4]}
34... Bxg4 {[%clk 0:01:02.1]} 35. Nd4 {[%clk 0:00:27.6]} 35... Bh5 {[%clk
0:00:58.9]} 36. Ne6 {[%clk 0:00:16.3]} 36... g4 {[%clk 0:00:57.3]} 37. Rd4
{[%clk 0:00:13]} 37... Nxe6 {[%clk 0:00:49.7]} 38. dxe6 {[%clk 0:00:12.3]} 38...
g3 {[%clk 0:00:49.6]} 39. Rf4+ {[%clk 0:00:11.5]} 39... Kg5 {[%clk 0:00:46.9]}
40. Rf7 {[%clk 0:00:11]} 40... g2 {[%clk 0:00:44.4]} 41. Bd3 {[%clk 0:00:10.3]}
41... Rhf8 {[%clk 0:00:43.9]} 42. Rg1 {[%clk 0:00:08.6]} 42... Rxf7 {[%clk
0:00:43.7]} 43. exf7 {[%clk 0:00:09.5]} 43... Kf4 {[%clk 0:00:43]} 0-1

[Event "*** Titled Tuesday Blitz"]
[Site "Chess.com"]
[Date "2021.03.02"]
[Round "1"]
[White "ChessFighter1975"]
[Black "Ginger_GM"]
[Result "1/2-1/2"]
[WhiteElo "2335"]
[BlackElo "2628"]
[TimeControl "180+1"]
[EndTime "10:07:05 PST"]
[Termination "Game drawn by repetition"]

1. d4 {[%clk 0:03:00.8]} 1... e6 {[%clk 0:02:55.6]} 2. c4 {[%clk 0:03:00.9]}
2... f5 {[%clk 0:02:55.1]} 3. g3 {[%clk 0:02:59.9]} 3... Nf6 {[%clk 0:02:55.3]}
4. Bg2 {[%clk 0:03:00.4]} 4... Be7 {[%clk 0:02:55.8]} 5. Nf3 {[%clk 0:03:01]}
5... O-O {[%clk 0:02:56.3]} 6. O-O {[%clk 0:03:01.8]} 6... d6 {[%clk 0:02:56.6]}
7. Nc3 {[%clk 0:03:02.1]} 7... a5 {[%clk 0:02:56.6]} 8. Rb1 {[%clk 0:03:00.6]}
8... Qe8 {[%clk 0:02:55.3]} 9. Qc2 {[%clk 0:02:55]} 9... Nc6 {[%clk 0:02:54.8]}
10. a3 {[%clk 0:02:54.9]} 10... e5 {[%clk 0:02:54.4]} 11. dxe5 {[%clk
0:02:47.8]} 11... dxe5 {[%clk 0:02:53.5]} 12. e4 {[%clk 0:02:36.1]} 12... Qh5
{[%clk 0:02:52.5]} 13. Nd5 {[%clk 0:02:08.8]} 13... fxe4 {[%clk 0:02:25.2]} 14.
Nxe7+ {[%clk 0:02:06]} 14... Nxe7 {[%clk 0:02:24.9]} 15. Nd2 {[%clk 0:02:05.2]}
15... Bh3 {[%clk 0:02:09.7]} 16. Nxe4 {[%clk 0:02:01.3]} 16... Ng4 {[%clk
0:02:09.8]} 17. f3 {[%clk 0:01:29.9]} 17... Bxg2 {[%clk 0:01:32.7]} 18. Qxg2
{[%clk 0:01:29.7]} 18... Nf6 {[%clk 0:01:32.4]} 19. Nxf6+ {[%clk 0:01:25.9]}
19... gxf6 {[%clk 0:01:30.1]} 20. Be3 {[%clk 0:01:25.6]} 20... Nf5 {[%clk
0:01:28.2]} 21. Bc5 {[%clk 0:01:21.4]} 21... Qg6 {[%clk 0:01:24]} 22. Rbd1
{[%clk 0:01:18.3]} 22... Rfd8 {[%clk 0:01:22.1]} 23. Qe2 {[%clk 0:01:15]} 23...
b6 {[%clk 0:01:20.8]} 24. Bf2 {[%clk 0:01:15]} 24... c5 {[%clk 0:01:13.6]} 25.
Rd5 {[%clk 0:01:12.2]} 25... Ne7 {[%clk 0:01:07.3]} 26. Rxd8+ {[%clk 0:01:11]}
26... Rxd8 {[%clk 0:01:07.2]} 27. Rd1 {[%clk 0:01:11.4]} 27... Qe8 {[%clk
0:01:02.4]} 28. f4 {[%clk 0:01:06.7]} 28... Nc6 {[%clk 0:01:00.2]} 29. Rxd8
{[%clk 0:01:04.8]} 29... Qxd8 {[%clk 0:01:00.2]} 30. fxe5 {[%clk 0:01:04.3]}
30... Nxe5 {[%clk 0:00:56.6]} 31. Qe4 {[%clk 0:00:57.2]} 31... Qd3 {[%clk
0:00:49.1]} 32. Qa8+ {[%clk 0:00:52.5]} 32... Kg7 {[%clk 0:00:47.4]} 33. Qb7+
{[%clk 0:00:51.1]} 33... Kg6 {[%clk 0:00:46]} 34. Qxb6 {[%clk 0:00:46.4]} 34...
Nf3+ {[%clk 0:00:40.7]} 35. Kg2 {[%clk 0:00:46.7]} 35... Qe4 {[%clk 0:00:40.8]}
36. Kf1 {[%clk 0:00:39.9]} 36... Ne5 {[%clk 0:00:24.7]} 37. Qxc5 {[%clk
0:00:34.1]} 37... Qh1+ {[%clk 0:00:24.7]} 38. Bg1 {[%clk 0:00:33.3]} 38... Qf3+
{[%clk 0:00:24.9]} 39. Qf2 {[%clk 0:00:33.2]} 39... Qd1+ {[%clk 0:00:23.4]} 40.
Kg2 {[%clk 0:00:32.6]} 40... Qd3 {[%clk 0:00:22.4]} 41. c5 {[%clk 0:00:30.9]}
41... Qe4+ {[%clk 0:00:22.6]} 42. Kf1 {[%clk 0:00:30.1]} 42... Qb1+ {[%clk
0:00:21.3]} 43. Kg2 {[%clk 0:00:30.1]} 43... Qe4+ {[%clk 0:00:21.3]} 44. Kf1
{[%clk 0:00:29.8]} 44... Qb1+ {[%clk 0:00:20.4]} 45. Kg2 {[%clk 0:00:30]} 45...
Qe4+ {[%clk 0:00:20.3]} 1/2-1/2

[Event "*** Titled Tuesday Blitz"]
[Site "Chess.com"]
[Date "2021.03.02"]
[Round "1"]
[White "Joseacorrea"]
[Black "turayev_shahruh17"]
[Result "0-1"]
[WhiteElo "2071"]
[BlackElo "2501"]
[TimeControl "180+1"]
[EndTime "10:07:05 PST"]
[Termination "turayev_shahruh17 won by checkmate"]

1. c4 {[%clk 0:02:57.9]} 1... g6 {[%clk 0:02:58.4]} 2. Nc3 {[%clk 0:02:58.4]}
2... Bg7 {[%clk 0:02:58.3]} 3. g3 {[%clk 0:02:58]} 3... c6 {[%clk 0:02:58]} 4.
Bg2 {[%clk 0:02:58.2]} 4... Nf6 {[%clk 0:02:58.4]} 5. d4 {[%clk 0:02:57.7]} 5...
d5 {[%clk 0:02:58.7]} 6. Nf3 {[%clk 0:02:56.8]} 6... O-O {[%clk 0:02:59.1]} 7.
cxd5 {[%clk 0:02:55.8]} 7... cxd5 {[%clk 0:03:00]} 8. O-O {[%clk 0:02:56.1]}
8... Bf5 {[%clk 0:03:00.9]} 9. Bf4 {[%clk 0:02:55]} 9... Nc6 {[%clk 0:03:00.9]}
10. Qd2 {[%clk 0:02:53.9]} 10... Ne4 {[%clk 0:02:59.7]} 11. Qe3 {[%clk
0:02:40.6]} 11... Rc8 {[%clk 0:02:58.6]} 12. Rac1 {[%clk 0:02:38.8]} 12... e6
{[%clk 0:02:55.7]} 13. Rfd1 {[%clk 0:02:37]} 13... Qb6 {[%clk 0:02:54.9]} 14. b3
{[%clk 0:02:09.9]} 14... Qa6 {[%clk 0:02:42.8]} 15. h3 {[%clk 0:02:07.4]} 15...
h5 {[%clk 0:02:40.5]} 16. a4 {[%clk 0:01:53.8]} 16... Nxc3 {[%clk 0:02:39.5]}
17. Rxc3 {[%clk 0:01:53.1]} 17... Be4 {[%clk 0:02:40.4]} 18. Ne5 {[%clk
0:01:36.6]} 18... Bxg2 {[%clk 0:02:34.8]} 19. Kxg2 {[%clk 0:01:37.5]} 19... Bxe5
{[%clk 0:02:23.8]} 20. Bxe5 {[%clk 0:01:38.4]} 20... Nxe5 {[%clk 0:02:23.7]} 21.
Rxc8 {[%clk 0:01:37.1]} 21... Rxc8 {[%clk 0:02:24.6]} 22. Qxe5 {[%clk
0:01:37.3]} 22... Qb6 {[%clk 0:02:22.5]} 23. Rd3 {[%clk 0:01:30.7]} 23... Qc7
{[%clk 0:02:06.9]} 24. Qf6 {[%clk 0:01:19.5]} 24... Qd8 {[%clk 0:02:05.5]} 25.
Qxd8+ {[%clk 0:01:18.6]} 25... Rxd8 {[%clk 0:02:06.4]} 26. Rc3 {[%clk
0:01:17.6]} 26... Rd7 {[%clk 0:02:06.8]} 27. f4 {[%clk 0:01:13.3]} 27... Kf8
{[%clk 0:02:06]} 28. Kf3 {[%clk 0:01:12.1]} 28... Ke7 {[%clk 0:02:05.1]} 29. g4
{[%clk 0:01:09.2]} 29... hxg4+ {[%clk 0:01:56.8]} 30. hxg4 {[%clk 0:01:09.3]}
30... Kd8 {[%clk 0:01:52.8]} 31. f5 {[%clk 0:01:04.8]} 31... gxf5 {[%clk
0:01:45.2]} 32. gxf5 {[%clk 0:01:05.7]} 32... Ke7 {[%clk 0:01:35.3]} 33. Kf4
{[%clk 0:00:58.9]} 33... Kf6 {[%clk 0:01:28.8]} 34. fxe6 {[%clk 0:00:44.1]}
34... fxe6 {[%clk 0:01:29.7]} 35. e4 {[%clk 0:00:43.9]} 35... dxe4 {[%clk
0:01:21.5]} 36. Kxe4 {[%clk 0:00:44.8]} 36... Rh7 {[%clk 0:01:18.7]} 37. Rf3+
{[%clk 0:00:39.9]} 37... Ke7 {[%clk 0:01:18.3]} 38. d5 {[%clk 0:00:20.2]} 38...
Rh4+ {[%clk 0:01:14.2]} 39. Rf4 {[%clk 0:00:20.2]} 39... exd5+ {[%clk 0:01:14]}
40. Ke5 {[%clk 0:00:14.7]} 40... Rxf4 {[%clk 0:01:14.9]} 41. Kxf4 {[%clk
0:00:14.4]} 41... Kd6 {[%clk 0:01:15.8]} 42. Ke3 {[%clk 0:00:15.1]} 42... Kc5
{[%clk 0:01:16.7]} 43. Kd3 {[%clk 0:00:15.6]} 43... Kb4 {[%clk 0:01:16.9]} 44.
Kd4 {[%clk 0:00:16]} 44... Kxb3 {[%clk 0:01:17]} 45. a5 {[%clk 0:00:16.8]} 45...
Ka4 {[%clk 0:01:13.5]} 46. a6 {[%clk 0:00:16.3]} 46... bxa6 {[%clk 0:00:57.7]}
47. Kxd5 {[%clk 0:00:17.2]} 47... Kb3 {[%clk 0:00:57.1]} 48. Kc5 {[%clk
0:00:17.4]} 48... a5 {[%clk 0:00:57.4]} 49. Kb5 {[%clk 0:00:17.9]} 49... a4
{[%clk 0:00:58.3]} 50. Ka6 {[%clk 0:00:18.5]} 50... a3 {[%clk 0:00:59.2]} 51.
Kb7 {[%clk 0:00:19.1]} 51... a2 {[%clk 0:01:00.1]} 52. Ka8 {[%clk 0:00:19.7]}
52... a1=Q {[%clk 0:01:01]} 53. Kb8 {[%clk 0:00:19.1]} 53... Qg7 {[%clk
0:01:01.8]} 54. Ka8 {[%clk 0:00:19.8]} 54... Kb4 {[%clk 0:01:01.9]} 55. Kb8
{[%clk 0:00:20.7]} 55... Kb5 {[%clk 0:01:02.8]} 56. Ka8 {[%clk 0:00:21.6]} 56...
Kb6 {[%clk 0:01:02.9]} 57. Kb8 {[%clk 0:00:22.5]} 57... Qg8# {[%clk 0:01:03.2]}
0-1

[Event "*** Titled Tuesday Blitz"]
[Site "Chess.com"]
[Date "2021.03.02"]
[Round "1"]
[White "CHENNAIBOND"]
[Black "djano"]
[Result "0-1"]
[WhiteElo "1733"]
[BlackElo "2479"]
[TimeControl "180+1"]
[EndTime "10:07:05 PST"]
[Termination "djano won by resignation"]

1. e4 {[%clk 0:03:00.9]} 1... c5 {[%clk 0:02:59]} 2. Nf3 {[%clk 0:03:01]} 2...
g6 {[%clk 0:02:59]} 3. d4 {[%clk 0:03:00.6]} 3... cxd4 {[%clk 0:02:59.9]} 4.
Nxd4 {[%clk 0:03:01]} 4... Bg7 {[%clk 0:02:59.6]} 5. c4 {[%clk 0:03:01.6]} 5...
Nc6 {[%clk 0:02:59.9]} 6. Be3 {[%clk 0:03:01.7]} 6... Nf6 {[%clk 0:02:59.7]} 7.
Nc3 {[%clk 0:03:02.4]} 7... Ng4 {[%clk 0:02:56.6]} 8. Qxg4 {[%clk 0:02:58.9]}
8... Nxd4 {[%clk 0:02:56.9]} 9. Qd1 {[%clk 0:02:59]} 9... e5 {[%clk 0:02:56.1]}
10. Be2 {[%clk 0:02:39.1]} 10... O-O {[%clk 0:02:55.3]} 11. O-O {[%clk
0:02:39.2]} 11... d6 {[%clk 0:02:54.4]} 12. Qd2 {[%clk 0:02:34.2]} 12... Be6
{[%clk 0:02:49.9]} 13. Bxd4 {[%clk 0:02:33.3]} 13... exd4 {[%clk 0:02:49.6]} 14.
Nb5 {[%clk 0:02:29.3]} 14... Qb6 {[%clk 0:02:42.2]} 15. Rfd1 {[%clk 0:02:29.2]}
15... d3 {[%clk 0:02:31.6]} 16. Bxd3 {[%clk 0:02:23]} 16... Rac8 {[%clk
0:02:20]} 17. Rac1 {[%clk 0:02:16.6]} 17... Kh8 {[%clk 0:01:57]} 18. Be2 {[%clk
0:02:03.7]} 18... Rcd8 {[%clk 0:01:48.7]} 19. Nxd6 {[%clk 0:01:46.7]} 19... Qxb2
{[%clk 0:01:07.1]} 20. Qxb2 {[%clk 0:01:40.8]} 20... Bxb2 {[%clk 0:01:08]} 21.
Rb1 {[%clk 0:01:41.2]} 21... Be5 {[%clk 0:01:08.3]} 22. Nxb7 {[%clk 0:01:38.7]}
22... Rc8 {[%clk 0:01:04.6]} 23. c5 {[%clk 0:01:35.2]} 23... Bxa2 {[%clk
0:01:03.3]} 24. Rbc1 {[%clk 0:01:27.5]} 24... Bb3 {[%clk 0:01:03.3]} 25. Rd3
{[%clk 0:01:23.2]} 25... Ba4 {[%clk 0:00:55.3]} 26. Bd1 {[%clk 0:01:03.3]} 26...
Bb5 {[%clk 0:00:45.1]} 27. Rb3 {[%clk 0:01:01.7]} 27... Bc6 {[%clk 0:00:39.7]}
28. f3 {[%clk 0:00:50.6]} 28... Bf4 {[%clk 0:00:27.3]} 29. Rcb1 {[%clk 0:00:49]}
29... Bxb7 {[%clk 0:00:24.5]} 30. Rxb7 {[%clk 0:00:47.2]} 30... Be3+ {[%clk
0:00:25.4]} 31. Kf1 {[%clk 0:00:47]} 31... Bxc5 {[%clk 0:00:25.4]} 32. Bb3
{[%clk 0:00:44.2]} 32... Kg7 {[%clk 0:00:25.3]} 33. Rc1 {[%clk 0:00:39.5]} 33...
a5 {[%clk 0:00:18.1]} 34. Ba4 {[%clk 0:00:38]} 34... Bb4 {[%clk 0:00:16.2]} 35.
Rcc7 {[%clk 0:00:37.7]} 35... Rxc7 {[%clk 0:00:15.8]} 36. Rxc7 {[%clk
0:00:38.6]} 36... Kf6 {[%clk 0:00:16]} 37. Ke2 {[%clk 0:00:38.2]} 37... Ke5
{[%clk 0:00:15.5]} 38. Kd3 {[%clk 0:00:38.6]} 38... Kd6 {[%clk 0:00:14.9]} 39.
Rc6+ {[%clk 0:00:37.6]} 39... Ke7 {[%clk 0:00:14.8]} 40. Kd4 {[%clk 0:00:38]}
40... Rd8+ {[%clk 0:00:14.9]} 41. Ke5 {[%clk 0:00:38.4]} 41... Bd6+ {[%clk
0:00:14.6]} 42. Kd5 {[%clk 0:00:36.8]} 42... Bxh2+ {[%clk 0:00:14.6]} 43. Kc4
{[%clk 0:00:37]} 43... Bd6 {[%clk 0:00:14.1]} 44. Rc7+ {[%clk 0:00:37.4]} 44...
Bxc7 {[%clk 0:00:13.3]} 45. Kc5 {[%clk 0:00:37.5]} 45... Bd6+ {[%clk 0:00:13.4]}
46. Kc6 {[%clk 0:00:38.4]} 46... Bb4 {[%clk 0:00:14.2]} 47. Kb5 {[%clk
0:00:38.5]} 47... Rd2 {[%clk 0:00:14.1]} 48. Kb6 {[%clk 0:00:39.4]} 48... Rxg2
{[%clk 0:00:14.3]} 49. Kc6 {[%clk 0:00:40.3]} 49... Rf2 {[%clk 0:00:14.5]} 50.
Kb5 {[%clk 0:00:41.2]} 50... Rxf3 {[%clk 0:00:14.7]} 51. Kb6 {[%clk 0:00:42.1]}
0-1

[Event "*** Titled Tuesday Blitz"]
[Site "Chess.com"]
[Date "2021.03.02"]
[Round "1"]
[White "ENajer77"]
[Black "pavelalexandru07"]
[Result "1-0"]
[WhiteElo "2591"]
[BlackElo "2279"]
[TimeControl "180+1"]
[EndTime "10:07:06 PST"]
[Termination "ENajer77 won by resignation"]

1. d4 {[%clk 0:02:57]} 1... Nf6 {[%clk 0:02:58.8]} 2. c4 {[%clk 0:02:52]} 2...
c5 {[%clk 0:02:56.4]} 3. d5 {[%clk 0:02:51.9]} 3... e6 {[%clk 0:02:54.9]} 4. Nc3
{[%clk 0:02:51.8]} 4... exd5 {[%clk 0:02:53.3]} 5. cxd5 {[%clk 0:02:47.2]} 5...
d6 {[%clk 0:02:53.7]} 6. Nf3 {[%clk 0:02:43.3]} 6... g6 {[%clk 0:02:53.2]} 7. e4
{[%clk 0:02:36.5]} 7... Bg7 {[%clk 0:02:51.5]} 8. Be2 {[%clk 0:02:34.7]} 8...
O-O {[%clk 0:02:50.6]} 9. Nd2 {[%clk 0:02:34.1]} 9... Re8 {[%clk 0:02:47.6]} 10.
O-O {[%clk 0:02:33.5]} 10... a6 {[%clk 0:02:36.4]} 11. a4 {[%clk 0:02:32.3]}
11... Nbd7 {[%clk 0:02:36.6]} 12. Qc2 {[%clk 0:02:32.2]} 12... b6 {[%clk
0:02:34.5]} 13. Nc4 {[%clk 0:02:30.1]} 13... Ne5 {[%clk 0:02:28.8]} 14. Nxe5
{[%clk 0:02:28.9]} 14... Rxe5 {[%clk 0:02:28.1]} 15. Bf4 {[%clk 0:02:27.9]}
15... Re8 {[%clk 0:02:17.3]} 16. Rfe1 {[%clk 0:02:27.4]} 16... Qc7 {[%clk
0:02:08.7]} 17. h3 {[%clk 0:02:12.3]} 17... Rb8 {[%clk 0:02:05.6]} 18. Bc4
{[%clk 0:02:06.6]} 18... Bd7 {[%clk 0:01:51.9]} 19. Bxa6 {[%clk 0:02:05.1]}
19... Nh5 {[%clk 0:01:37]} 20. Bh2 {[%clk 0:02:03.6]} 20... Be5 {[%clk
0:01:12.9]} 21. Bb5 {[%clk 0:02:00.4]} 21... Bxh2+ {[%clk 0:00:59.4]} 22. Kxh2
{[%clk 0:02:00.8]} 22... Rf8 {[%clk 0:00:56.7]} 23. Rad1 {[%clk 0:01:49.2]}
23... g5 {[%clk 0:00:55.2]} 24. e5 {[%clk 0:01:45.2]} 24... Rbe8 {[%clk
0:00:39.4]} 25. e6 {[%clk 0:01:21.9]} 25... Bxb5 {[%clk 0:00:29.4]} 26. Nxb5
{[%clk 0:01:20.5]} 26... Qe7 {[%clk 0:00:17.9]} 27. Kg1 {[%clk 0:01:19.5]} 27...
Rd8 {[%clk 0:00:13.4]} 28. Re3 {[%clk 0:01:16.3]} 28... Nf4 {[%clk 0:00:11.8]}
29. g3 {[%clk 0:01:11.4]} 29... Ng6 {[%clk 0:00:05.2]} 30. Rde1 {[%clk
0:01:09.8]} 30... f6 {[%clk 0:00:03.2]} 31. Kg2 {[%clk 0:01:03.4]} 31... f5
{[%clk 0:00:03.5]} 32. Rf3 {[%clk 0:00:59.1]} 32... f4 {[%clk 0:00:02.2]} 33.
Qe4 {[%clk 0:00:52.7]} 33... Ne5 {[%clk 0:00:02.2]} 34. Rc3 {[%clk 0:00:40.6]}
34... Qf6 {[%clk 0:00:02.4]} 35. Rc2 {[%clk 0:00:33.7]} 35... f3+ {[%clk
0:00:02.4]} 36. Kh2 {[%clk 0:00:32.3]} 36... Kh8 {[%clk 0:00:02.9]} 37. Nxd6
{[%clk 0:00:31.2]} 37... Rxd6 {[%clk 0:00:02.8]} 38. Qxe5 {[%clk 0:00:31.5]}
38... Qxe5 {[%clk 0:00:03.3]} 39. Rxe5 {[%clk 0:00:31.9]} 1-0